bitfinex/quotes_SOLUSD_20250917
["timestamp","ask_amount","ask_price","bid_price","bid_amount"]
[1758132061679,21.10537269,236.61,235.99,20.2]
[1758132061977,5.73708318,236.35,235.99,0.2]
[1758132062154,5.73708318,236.11,235.99,0.2]
[1758132062361,16.63464604,236.6,236.01,20.0]
[1758132062561,16.63464604,236.6,236.19,20.0]
[1758132062769,16.63464604,236.6,236.09,20.0]
[1758132063018,14.78917348,236.66,235.99,0.2]
[1758132063019,5.73708318,236.41,236.13,20.0]
[1758132063169,5.73708318,236.64,236.04,20.0]
[1758132063372,5.73708318,236.35,235.99,0.2]
[1758132063684,14.79915432,236.5,235.99,0.2]
[1758132063866,5.73708318,236.35,235.99,0.2]
[1758132064069,14.79915432,236.5,235.99,0.2]
[1758132064267,0.2142709,236.42,236.08,20.0]
[1758132064468,5.73708318,236.64,236.21,20.0]
[1758132064779,5.73708318,236.93,236.4,20.0]
[1758132064991,30.44,237.16,236.54,20.0]
[1758132065190,5.73708318,236.63,236.35,20.0]
[1758132065361,5.73708318,236.63,236.04,0.03679174]
[1758132065362,4.21229991,237.4,236.33,20.0]
[1758132065698,5.73708318,236.67,236.42,20.0]
[1758132065868,5.73708318,236.93,236.36,20.0]
[1758132066192,31.40308765,236.93,236.29,20.0]
[1758132066377,5.73708318,236.93,236.29,20.0]
[1758132066580,53.40833272,236.93,236.19,20.0]
[1758132066787,53.40833272,236.93,236.03,55.6252392]
[1758132066788,36.19708318,236.93,236.27,20.0]
[1758132066980,5.73708318,236.36,236.14,20.0]
[1758132067184,5.73708318,236.24,236.03,25.1852392]
[1758132067365,5.73708318,236.15,235.99,0.2]
[1758132067573,5.73708318,236.35,235.99,0.2]
[1758132067784,21.55209295,236.58,235.99,0.2]
[1758132068092,5.73708318,236.35,235.99,20.2]
[1758132068307,66.93654892,236.6,235.99,0.2]
[1758132068481,70.66199339,236.6,236.01,20.0]
[1758132068667,5.73708318,236.35,236.04,20.0]
[1758132068996,21.97104669,237.05,236.06,20.0]
[1758132069287,21.97104669,237.05,235.99,20.6551148]
[1758132069288,5.73708318,236.64,236.17,20.0]
[1758132069490,22.94833272,236.93,236.39,20.0]
[1758132069491,21.84279081,236.92,236.39,20.0]
[1758132069819,21.84279081,236.92,236.05,30.46]
[1758132069820,5.73708318,236.64,236.31,20.0]
[1758132069973,10.55386693,236.88,236.23,20.0]
[1758132070288,15.04753078,236.88,236.08,20.0]
[1758132070520,4.5166279,236.87,236.23,20.0]
[1758132070667,4.5166279,236.87,236.02,5.62398825]
[1758132070668,5.73708318,236.64,236.16,20.0]
[1758132070871,10.55386693,236.88,236.16,20.0]
[1758132071194,10.55386693,236.88,235.99,0.2]
[1758132071195,10.55386693,236.88,236.12,20.0]
[1758132071370,10.55386693,236.88,236.39,20.0]
[1758132071371,12.68,236.88,236.39,20.0]
[1758132071572,14.7754137,236.88,236.32,20.0]
[1758132071781,14.7754137,236.88,236.42,20.0]
[1758132072001,35.88314757,236.88,236.33,20.0]
[1758132072171,35.88314757,236.88,236.29,20.0]
[1758132072372,5.73708318,236.64,236.31,20.0]
[1758132072676,56.99088144,236.88,236.16,20.0]
[1758132072891,5.73708318,236.64,236.04,20.0]
[1758132073189,5.73708318,236.64,236.08,20.0]
[1758132073383,2.11774671,236.63,236.11,20.0]
[1758132073572,35.92257627,236.62,236.12,20.0]
[1758132073772,5.73708318,236.35,236.11,20.0]
[1758132073999,35.92257627,236.62,236.07,20.0]
[1758132074193,27.1307028,237.49,236.17,20.0]
[1758132074194,0.42349553,236.61,236.17,20.0]
[1758132074398,5.73708318,236.64,236.19,20.0]
[1758132074609,0.42349553,236.63,236.2,0.42337002]
[1758132074812,0.42349553,236.63,236.02,20.0]
[1758132074813,30.46,236.62,236.02,20.0]
[1758132075020,0.5282955,236.61,235.99,0.2]
[1758132075311,0.5282955,236.61,235.73,20.0]
[1758132075312,5.73708318,236.35,235.73,20.0]
[1758132075607,5.73708318,236.35,235.04,0.03]
[1758132075608,35.96665677,236.33,235.67,5.16870407]
[1758132075904,11.7350802,236.32,235.71,20.0]
[1758132076089,14.80979984,236.33,235.69,20.0]
[1758132076399,21.34556742,236.5,235.79,20.0]
[1758132076400,5.73708318,236.35,235.79,20.0]
[1758132076572,5.47876341,236.38,235.83,20.0]
[1758132076775,35.92561284,236.6,235.63,27.86676988]
[1758132076776,21.10537269,236.61,236.06,20.0]
[1758132076980,21.34556742,236.5,236.11,20.0]
[1758132077197,25.14573631,236.61,236.44,20.0]
[1758132077407,21.57703263,236.71,235.81,21.92178361]
[1758132077408,26.10535653,236.91,236.32,20.0]
[1758132077594,5.73708318,236.64,236.34,20.0]
[1758132077912,5.73708318,236.64,236.14,20.0]
[1758132077913,14.77354268,236.91,236.35,20.0]
[1758132078114,14.77354268,236.91,236.4,20.0]
[1758132078280,5.73708318,236.93,236.53,20.0]
[1758132078608,43.27700382,236.93,236.39,20.0]
[1758132078787,43.12018164,236.93,236.27,20.0]
[1758132078984,43.12018164,236.93,236.39,20.0]
[1758132078985,5.580261,236.92,236.39,20.0]
[1758132079187,5.580261,236.92,236.21,20.0]
[1758132079495,5.580261,236.92,234.64,12.71698353]
[1758132079496,30.65438812,236.92,236.1,4.23549343]
[1758132079786,35.84531689,237.13,236.1,4.23549343]
[1758132079787,35.88011817,236.9,236.1,4.23549343]
[1758132079993,6.46517876,236.89,236.1,4.23549343]
[1758132080302,5.73708318,236.35,235.87,4.23962352]
[1758132080487,30.48,236.56,235.97,20.0]
[1758132080689,5.73708318,236.35,236.13,0.03]
[1758132081204,13.01436199,236.35,236.13,0.03]
[1758132081386,56.37917731,236.56,236.13,0.03]
[1758132081588,5.580261,236.61,236.16,14.8204607]
[1758132081800,6.05986839,236.64,236.27,20.0]
[1758132082010,0.06,236.64,236.42,20.0]
[1758132082201,0.06,236.64,236.46,20.0]
[1758132082405,0.06,236.64,236.52,20.0]
[1758132082625,0.06,236.64,236.48,20.0]
[1758132082909,0.06,236.64,236.59,20.0]
[1758132083112,0.06,236.64,236.63,20.0]
[1758132083411,0.06,236.64,236.48,24.77551267]
[1758132083617,6.05986839,236.64,236.39,20.0]
[1758132083918,0.06,236.64,236.45,20.0]
[1758132084297,0.06,236.64,236.39,12.52008948]
[1758132084497,0.06,236.64,236.47,20.0]
[1758132084696,0.06,236.64,236.45,5.98963702]
[1758132084902,0.06,236.64,236.46,20.0]
[1758132085099,0.06,236.64,236.3,5.98963702]
[1758132085100,0.06,236.64,236.5,20.0]
[1758132085306,0.06,236.64,236.56,20.0]
[1758132085529,0.06,236.64,236.63,20.0]
[1758132086231,0.06,236.69,236.64,14.79039891]
[1758132086433,5.98963702,237.01,236.88,20.0]
[1758132086711,3.3184584,237.22,236.99,20.0]
[1758132086922,12.86377296,237.32,237.03,25.98963702]
[1758132087122,3.45785808,237.33,237.03,20.0]
[1758132087300,5.98963702,237.29,237.16,20.0]
[1758132087614,10.58638943,237.5,237.08,20.0]
[1758132087615,14.73746262,237.49,237.08,20.0]
[1758132087820,14.73746262,237.49,236.94,3.30862242]
[1758132087821,5.580261,237.48,237.06,20.0]
[1758132088112,5.98963702,237.3,237.15,20.0]
[1758132088302,4.2107036,237.49,237.15,20.0]
[1758132088502,0.06,237.5,237.22,20.0]
[1758132088710,0.06,237.5,237.33,5.98963702]
[1758132088900,5.98963702,237.44,237.23,20.0]
[1758132089095,5.98963702,237.42,237.22,20.0]
[1758132089294,0.06,237.5,237.32,20.0]
[1758132089495,0.06,237.5,237.25,20.0]
[1758132089694,0.06,237.5,237.4,20.0]
[1758132089890,0.06,237.5,237.15,21.08296889]
[1758132089891,0.06,237.5,237.35,20.0]
[1758132090120,0.06,237.5,237.34,20.0]
[1758132090327,4.2107036,237.49,236.98,12.54343896]
[1758132090623,4.2107036,237.49,236.45,30.44]
[1758132090624,1.79475718,237.48,237.01,5.98963702]
[1758132090794,5.98963702,237.18,237.05,20.0]
[1758132091002,5.98963702,237.18,236.67,21.5042947]
[1758132091003,14.73746262,237.49,236.96,20.0]
[1758132091217,14.73746262,237.49,236.89,12.49176596]
[1758132091218,14.73746262,237.49,237.03,20.0]
[1758132091394,5.98963702,237.16,237.04,20.0]
[1758132091593,14.73746262,237.49,237.1,20.0]
[1758132092016,40.08004125,237.49,237.14,20.0]
[1758132092329,40.08004125,237.49,237.07,20.0]
[1758132092507,5.98963702,237.2,237.02,20.0]
[1758132092819,61.13355929,237.49,237.05,20.0]
[1758132093122,61.13355929,237.49,236.98,20.0]
[1758132093123,5.98963702,237.32,236.98,20.0]
[1758132093330,5.98963702,237.0,236.86,20.0]
[1758132093543,5.98963702,236.89,236.68,20.0]
[1758132093824,12.506972,236.89,236.74,20.0]
[1758132094036,21.51218466,237.19,236.62,20.0]
[1758132094232,5.98963702,236.98,236.6,32.63635394]
[1758132094395,5.98963702,236.98,236.6,20.0]
[1758132094593,5.98963702,236.98,236.6,32.72402882]
[1758132094819,5.98963702,236.65,236.46,20.0]
[1758132094998,21.71054297,237.22,236.54,5.98963702]
[1758132095196,21.3089926,237.2,236.63,20.0]
[1758132095502,21.3089926,237.2,236.74,5.98963702]
[1758132095716,5.98963702,236.76,236.6,20.0]
[1758132095916,5.98963702,236.71,236.6,20.0]
[1758132096218,4.21994345,236.97,236.57,20.0]
[1758132096518,4.21994345,236.97,236.72,20.0]
[1758132096519,24.82308848,236.97,236.72,20.0]
[1758132096703,4.21994345,236.97,236.72,20.0]
[1758132096902,12.78035444,236.99,236.72,20.0]
[1758132097202,38.11807513,237.14,236.73,20.0]
[1758132097409,6.01277452,237.06,236.69,20.0]
[1758132097613,14.7511274,237.27,236.64,20.0]
[1758132097614,5.98963702,236.98,236.64,20.0]
[1758132097808,5.98963702,236.77,236.68,20.0]
[1758132098020,5.98963702,236.69,236.52,20.0]
[1758132098195,5.98963702,236.98,236.58,20.0]
[1758132098396,5.98963702,236.98,236.62,20.0]
[1758132098625,31.00421478,236.98,236.69,0.03]
[1758132098822,5.98963702,236.98,236.69,0.03]
[1758132099123,5.98963702,236.81,236.78,20.0]
[1758132099319,12.58169747,237.01,236.85,20.0]
[1758132099534,5.98963702,236.93,236.9,20.0]
[1758132099732,52.11066953,237.23,236.94,20.0]
[1758132100032,52.11066953,237.23,236.77,5.98963702]
[1758132100033,5.98963702,236.95,236.89,20.0]
[1758132100212,41.57238269,237.23,236.89,20.0]
[1758132100562,41.57238269,237.23,237.05,20.0]
[1758132100563,12.52321147,237.23,237.05,20.0]
[1758132100735,0.06,237.37,237.12,20.0]
[1758132100736,10.53411449,237.33,237.12,20.0]
[1758132101030,0.06,237.37,237.12,20.0]
[1758132101031,0.06,237.32,237.19,20.0]
[1758132101210,0.06,237.32,237.18,20.0]
[1758132101416,5.98963702,237.19,237.06,20.0]
[1758132101714,5.98963702,237.07,237.01,20.0]
[1758132101900,5.98963702,237.02,236.96,20.0]
[1758132102102,14.74864101,237.31,236.88,20.0]
[1758132102317,5.98963702,236.89,236.79,20.0]
[1758132102617,12.63889127,237.14,236.87,20.0]
[1758132102820,35.81812817,237.31,236.89,20.0]
[1758132103117,14.74864101,237.31,237.05,20.0]
[1758132103320,5.98963702,237.07,237.03,20.0]
[1758132103624,4.21389743,237.31,237.09,20.0]
[1758132103924,4.21389743,237.31,236.89,20.0]
[1758132103925,0.06,237.32,237.27,20.0]
[1758132104115,0.06,237.32,237.29,20.0]
[1758132104325,0.06,237.32,237.31,20.0]
[1758132104641,0.06,237.53,237.45,20.0]
[1758132104933,0.06,237.53,237.49,20.0]
[1758132105321,0.06,237.53,237.46,20.0]
[1758132105526,5.98963702,237.47,237.39,20.0]
[1758132105844,5.98963702,237.49,237.47,20.0]
[1758132106010,0.06,237.53,237.14,30.4]
[1758132106011,0.06,237.53,237.41,20.0]
[1758132106322,0.06,237.53,237.32,5.98963702]
[1758132106323,5.98963702,237.42,237.36,20.0]
[1758132106527,0.06,237.53,237.29,20.0]
[1758132106528,5.98963702,237.37,237.29,20.0]
[1758132106716,0.06,237.53,237.41,20.0]
[1758132107048,5.98963702,237.42,237.29,20.0]
[1758132107235,5.98963702,237.3,237.21,20.0]
[1758132107424,21.34043807,237.51,237.19,20.0]
[1758132107629,5.98963702,237.32,237.07,20.12662792]
[1758132107942,5.98963702,237.19,237.18,20.0]
[1758132108113,35.78947366,237.5,237.1,20.0]
[1758132108429,60.83017327,237.5,237.07,0.12662792]
[1758132108632,5.98963702,237.17,237.12,20.0]
[1758132108807,35.78947366,237.5,237.1,20.0]
[1758132109012,61.56072884,237.5,237.16,20.0]
[1758132109236,5.98963702,237.18,237.13,20.0]
[1758132109418,5.98963702,237.32,237.07,0.12662792]
[1758132109734,61.56072884,237.5,237.22,20.0]
[1758132109951,14.73684209,237.5,237.25,20.0]
[1758132110118,4.21052631,237.5,237.25,20.0]
[1758132110316,4.21052631,237.5,237.33,20.0]
[1758132110623,4.21052631,237.5,237.22,20.0]
[1758132110828,4.21052631,237.5,237.06,12.793042]
[1758132110829,56.84210523,237.5,237.2,20.0]
[1758132111027,4.21052631,237.5,237.3,20.0]
[1758132111229,5.98963702,237.34,237.33,20.0]
[1758132111421,5.98963702,237.34,237.14,14.75907849]
[1758132111422,4.21052631,237.5,237.31,20.0]
[1758132111620,5.98963702,237.31,237.15,20.0]
[1758132111816,10.52897574,237.44,237.1,20.0]
[1758132112016,14.74056603,237.44,237.23,20.0]
[1758132112217,5.98963702,237.24,237.02,20.0]
[1758132112436,5.98963702,237.32,237.04,20.0]
[1758132112645,5.98963702,237.32,237.1,20.0]
[1758132112830,14.74056603,237.44,237.15,20.0]
[1758132113061,14.74056603,237.44,237.22,20.0]
[1758132113244,14.74056603,237.44,237.0,14.76787594]
[1758132113245,5.98963702,237.32,237.27,20.0]
[1758132113454,5.98963702,237.28,237.18,20.0]
[1758132113661,4.21115706,237.47,237.27,20.0]
[1758132113954,0.06,237.53,237.29,20.0]
[1758132114124,0.06,237.53,237.37,20.0]
[1758132114322,5.98963702,237.38,237.27,20.0]
[1758132114525,14.7356012,237.52,237.26,20.0]
[1758132114726,5.98963702,237.3,237.26,20.0]
[1758132114944,14.7356012,237.52,237.28,20.0]
[1758132115121,5.98963702,237.29,237.27,20.0]
[1758132115442,35.78646007,237.52,237.12,20.0]
[1758132115625,5.98963702,237.32,237.0,20.0]
[1758132115819,4.21564643,237.22,237.04,20.0]
[1758132116156,5.98963702,237.05,236.93,20.0]
[1758132116325,5.98963702,236.94,236.93,20.0]
[1758132116529,5.98963702,236.94,236.89,20.0]
[1758132116718,21.8347275,237.21,236.92,20.0]
[1758132117032,35.83186764,237.22,236.97,0.03]
[1758132117243,5.98963702,236.98,236.97,0.03]
[1758132117742,10.5387404,237.22,236.98,20.0]
[1758132117943,5.98963702,237.0,236.98,20.0]
[1758132118147,10.5387404,237.22,236.98,20.0]
[1758132118332,5.98963702,237.0,236.97,0.03]
[1758132118528,5.98963702,236.98,236.97,20.03]
[1758132118729,4.21123557,237.46,237.12,20.0]
[1758132118960,14.73932451,237.46,237.15,20.0]
[1758132119119,14.73932451,237.46,237.24,20.0]
[1758132119330,5.98963702,237.29,237.24,20.0]
[1758132119834,10.52808894,237.46,237.24,20.0]
[1758132120034,10.52808894,237.46,237.2,20.0]
[1758132120235,0.08160406,237.55,237.31,20.0]
[1758132120480,0.08160406,237.55,237.46,20.0]
[1758132120628,0.08160406,237.55,237.17,14.75718409]
[1758132120629,0.08160406,237.55,237.49,20.0]
[1758132120833,0.08160406,237.55,237.52,20.0]
[1758132121132,0.08160406,237.55,237.54,20.0]
[1758132121432,1e-08,237.55,237.54,45.98963702]
[1758132121835,5.98963702,238.0,237.61,40.0]
[1758132122036,5.98963702,238.0,237.61,20.0]
[1758132122233,5.98963702,238.0,237.61,25.98963702]
[1758132122445,30.38,238.12,237.82,20.0]
[1758132122641,30.38,238.12,237.77,20.0]
[1758132122946,21.36628071,238.29,237.54,14.73436052]
[1758132122947,0.1,238.29,237.82,20.0]
[1758132123132,4.23954712,238.1,237.89,20.0]
[1758132123460,0.03962255,238.1,237.89,25.98963702]
[1758132123670,0.03962255,238.1,237.89,20.0]
[1758132123845,5.98963702,238.02,237.89,20.0]
[1758132124034,5.98963702,238.02,237.93,19.5]
[1758132124245,0.03962255,238.1,237.97,19.5]
[1758132124439,0.03962255,238.1,237.9,19.5]
[1758132124638,5.98963702,237.98,237.96,19.5]
[1758132124951,5.98963702,237.98,237.61,10.52104598]
[1758132124952,0.03962255,238.1,237.83,19.5]
[1758132125172,0.03962255,238.1,237.84,19.5]
[1758132125372,5.98963702,237.86,237.85,19.5]
[1758132125571,0.03962255,238.1,237.72,19.5]
[1758132125737,5.98963702,238.0,237.67,19.5]
[1758132125938,35.71578637,237.99,237.72,19.5]
[1758132126175,35.71578637,237.99,237.76,19.5]
[1758132126341,35.71578637,237.99,237.45,21.05671879]
[1758132126342,5.98963702,237.77,237.64,19.5]
[1758132126544,0.5,237.96,237.61,19.5]
[1758132126740,5.98963702,237.62,237.53,19.5]
[1758132127040,5.98963702,237.62,237.02,30.34]
[1758132127041,5.98963702,237.66,237.42,19.5]
[1758132127259,5.98963702,237.66,237.14,49.51782371]
[1758132127260,5.98963702,237.43,237.32,19.5]
[1758132127439,5.98963702,237.66,237.42,19.5]
[1758132127634,5.98963702,237.66,237.1,12.97572677]
[1758132127635,5.98963702,237.66,237.44,19.5]
[1758132127839,0.5,237.87,237.46,19.5]
[1758132128162,21.20068398,237.85,237.6,19.5]
[1758132128333,10.51038425,237.86,237.6,19.5]
[1758132128529,10.51038425,237.86,237.66,19.5]
[1758132128770,4.20380023,237.88,237.58,19.5]
[1758132128975,30.84,237.85,237.5,19.5]
[1758132129132,30.34,237.85,237.44,19.5]
[1758132129333,30.34,237.85,237.3,19.5]
[1758132129334,5.98963702,237.66,237.3,19.5]
[1758132129573,0.5,237.53,237.16,19.5]
[1758132129730,5.98963702,237.66,237.2,19.5]
[1758132129731,5.98963702,237.22,237.2,19.5]
[1758132130056,30.34,237.5,237.22,19.5]
[1758132130267,5.98963702,237.23,237.15,19.5]
[1758132130440,5.98963702,237.23,236.95,20.03]
[1758132130441,5.98963702,237.17,237.07,19.5]
[1758132130769,5.98963702,237.32,237.14,19.5]
[1758132130956,5.98963702,237.32,237.15,19.5]
[1758132131145,35.77892831,237.57,237.22,19.5]
[1758132131337,35.77892831,237.57,237.03,20.0]
[1758132131338,0.5,237.54,237.2,19.5]
[1758132131545,14.73249989,237.57,237.28,19.5]
[1758132131751,36.27892831,237.57,237.2,19.5]
[1758132131940,36.27892831,237.57,236.95,0.03]
[1758132131941,5.98963702,237.21,237.14,19.5]
[1758132132166,5.98963702,237.15,237.06,19.5]
[1758132132340,5.98963702,237.32,237.01,19.5]
[1758132132341,5.98963702,237.07,237.01,19.5]
[1758132132536,5.98963702,237.32,236.95,0.03]
[1758132132537,5.98963702,237.02,236.95,0.03]
[1758132132883,11.97927404,236.98,236.69,19.53]
[1758132133038,30.34,237.15,236.86,19.5]
[1758132133538,5.98963702,237.32,236.96,19.5]
[1758132133742,0.5,237.27,236.92,19.5]
[1758132133940,14.75174912,237.26,237.02,19.5]
[1758132134159,14.75174912,237.26,236.93,19.5]
[1758132134362,15.25174912,237.26,236.93,19.5]
[1758132134561,15.25174912,237.26,236.69,0.03]
[1758132134562,14.75174912,237.26,236.85,19.5]
[1758132134752,14.75174912,237.26,236.97,19.5]
[1758132134960,14.75174912,237.26,236.91,19.5]
[1758132134961,5.98963702,236.98,236.91,19.5]
[1758132135276,15.25174912,237.26,237.03,0.03]
[1758132135277,9.25174912,237.26,237.03,0.03]
[1758132135981,9.25174912,237.26,237.09,20.0]
[1758132136140,5.98963702,237.1,236.95,20.0]
[1758132136340,5.98963702,236.98,236.78,20.0]
[1758132136576,5.98963702,236.98,236.65,20.0]
[1758132136755,5.98963702,236.98,236.75,20.0]
[1758132137073,0.52749293,236.97,236.86,20.0]
[1758132137278,30.8870481,237.17,236.74,20.0]
[1758132137443,30.8870481,237.17,236.84,20.0]
[1758132137640,30.8870481,237.17,236.91,20.0]
[1758132137840,5.98963702,236.93,236.86,20.0]
[1758132138107,5.98963702,236.87,236.76,20.0]
[1758132138270,5.98963702,236.98,236.69,0.03]
[1758132138271,0.52749293,236.97,236.75,20.0]
[1758132138475,5.98963702,236.76,236.69,0.03]
[1758132138646,0.52751519,236.96,236.73,20.0]
[1758132138848,0.52751519,236.96,236.69,0.03]
[1758132139151,5.98963702,236.7,236.69,0.03]
[1758132139345,0.52751519,236.96,236.69,20.03]
[1758132139652,5.98963702,236.98,236.69,20.03]
[1758132139653,0.52753745,236.95,236.69,0.03]
[1758132139854,14.77167214,236.94,236.72,20.0]
[1758132140053,0.52758198,236.93,236.84,20.0]
[1758132140257,30.38,237.25,236.7,5.98963702]
[1758132140258,0.52742616,237.0,236.86,20.0]
[1758132140453,0.52713701,237.13,236.96,20.0]
[1758132140656,0.52713701,237.13,236.7,14.78664976]
[1758132140657,0.52715924,237.12,236.93,20.0]
[1758132140975,0.5269148,237.23,236.97,20.0]
[1758132141154,0.5269148,237.23,237.02,20.0]
[1758132141357,0.5269148,237.23,237.01,20.0]
[1758132141549,0.5269148,237.23,236.7,14.78664976]
[1758132141550,0.5269148,237.23,237.04,20.0]
[1758132141747,5.98963702,237.05,236.99,20.0]
[1758132141985,4.21549616,237.22,237.04,20.0]
[1758132142152,4.74174379,237.26,237.15,20.0]
[1758132142348,21.9528882,237.27,237.26,2.49e-06]
[1758132142545,21.23668412,237.27,237.05,20.0]
[1758132142748,21.73537539,237.52,237.04,4.21863896]
[1758132143047,21.04013353,237.5,237.16,20.0]
[1758132143280,21.04013353,237.5,237.04,14.76538212]
[1758132143281,21.04013353,237.5,237.18,20.0]
[1758132143445,0.52598358,237.65,237.35,5.98963702]
[1758132143651,14.72816023,237.64,237.2,20.0]
[1758132143846,0.52602785,237.63,237.25,20.0]
[1758132144052,4.20838239,237.63,237.28,20.0]
[1758132144282,0.52604999,237.62,237.49,5.72051262]
[1758132144460,5.72051262,237.54,237.28,20.0]
[1758132144659,20.52571564,237.77,237.25,20.0]
[1758132144872,0.52571813,237.77,237.23,30.38]
[1758132145174,21.92917725,237.71,237.23,30.38]
[1758132145356,5.72051262,237.36,237.25,5.72051262]
[1758132145678,21.22466899,237.67,237.24,5.72051262]
[1758132145679,43.06,237.63,237.24,5.72051262]
[1758132145859,5.72051262,237.43,237.3,5.72051262]
[1758132146065,4.20928568,237.57,237.29,5.72051262]
[1758132146374,4.20928568,237.57,237.15,20.0]
[1758132146375,0.52618285,237.56,237.14,20.0]
[1758132146677,5.72051262,237.51,237.12,20.0]
[1758132146866,0.52618285,237.56,237.21,20.0]
[1758132147068,21.42027419,237.83,236.93,30.38]
[1758132147069,0.52604999,237.62,237.41,5.72051262]
[1758132147276,0.52569602,237.78,237.38,5.72051262]
[1758132147479,36.60238688,237.76,237.26,20.0]
[1758132147779,36.60238688,237.76,237.22,5.72051262]
[1758132147780,0.52576235,237.75,237.31,20.0]
[1758132147958,0.52576235,237.75,237.26,20.0]
[1758132147959,5.72051262,237.47,237.26,20.0]
[1758132148148,0.52587294,237.7,237.26,20.0]
[1758132148354,0.52587294,237.7,237.22,52.66087995]
[1758132148355,0.52587294,237.7,237.22,46.94036733]
[1758132148655,19.99999751,237.68,237.22,46.94036733]
[1758132148968,5.72051262,237.51,237.22,46.94036733]
[1758132149149,10.51731674,237.71,237.28,5.72051262]
[1758132149150,0.52598358,237.65,237.28,5.72051262]
[1758132149351,0.52598358,237.65,237.38,5.72051262]
[1758132149571,5.72051262,237.49,237.23,20.0]
[1758132149855,5.72051262,237.38,237.25,5.72051262]
[1758132150060,5.72051262,237.51,237.22,46.94036733]
[1758132150061,5.72051262,237.36,237.22,46.94036733]
[1758132150366,0.5266484,237.35,237.0,47.96870613]
[1758132150574,20.52633546,237.49,237.06,5.72051262]
[1758132150767,19.99999751,237.48,237.0,47.96870613]
[1758132150959,0.52638227,237.47,237.0,47.96870613]
[1758132151161,0.52638227,237.47,237.0,67.96870613]
[1758132151367,0.52638227,237.47,237.02,0.5]
[1758132151767,0.52638227,237.47,237.13,5.72051262]
[1758132151957,5.72051262,237.16,237.0,47.96870613]
[1758132152158,5.72051262,237.09,237.0,47.96870613]
[1758132152367,0.52662622,237.36,237.0,47.96870613]
[1758132152576,0.52662622,237.36,236.81,20.0]
[1758132152577,5.72051262,237.09,236.81,20.0]
[1758132152778,0.52669279,237.33,237.07,5.72051262]
[1758132153105,5.72051262,237.18,237.06,5.72051262]
[1758132153382,19.96164349,237.44,236.99,20.0]
[1758132153562,19.96164349,237.44,236.95,20.0]
[1758132153760,5.72051262,237.08,236.91,47.96870613]
[1758132153959,35.82869666,237.24,236.91,47.24870613]
[1758132154176,19.99999751,237.21,236.91,47.24870613]
[1758132154372,0.52698145,237.2,236.76,0.03]
[1758132155065,0.52698145,237.2,236.77,20.0]
[1758132155261,5.72051262,237.04,236.77,20.0]
[1758132155466,5.72051262,237.04,236.76,0.03]
[1758132155467,0.52700366,237.19,236.85,5.72051262]
[1758132155660,0.52700366,237.19,236.76,0.03]
[1758132155661,5.72051262,237.03,236.91,5.72051262]
[1758132155860,0.52700366,237.19,236.76,0.03]
[1758132156179,0.52700366,237.19,236.89,5.72051262]
[1758132156180,5.72051262,236.99,236.89,5.72051262]
[1758132156373,5.72051262,237.04,236.93,5.72051262]
[1758132156570,5.72051262,237.04,236.79,20.0]
[1758132156773,0.5270481,237.17,236.76,0.03]
[1758132156979,0.5270481,237.17,236.87,5.72051262]
[1758132157298,5.72051262,236.98,236.87,5.72051262]
[1758132157793,0.5270481,237.17,236.95,5.72051262]
[1758132158095,14.75796929,237.16,236.89,5.72051262]
[1758132158380,0.52709255,237.15,236.76,0.03]
[1758132158556,5.72051262,236.86,236.77,5.72051262]
[1758132158760,0.52718147,237.11,236.76,0.03]
[1758132159177,5.72051262,236.79,236.76,0.03]
[1758132159358,0.52733715,237.04,236.76,5.75051262]
[1758132159560,17.77866645,237.14,236.79,5.72051262]